Cogmind - Beta 13 @@@ ROGUE MODE // 2024.06.27 @ 15:01:35 Player: Jazzer Result: Destroyed by G-50 Soldier with Heavy Laser Performance ------------- Evolutions (2) 1000 Regions Visited (7) 1400 Robots Destroyed (152) 760 Value Destroyed (3514) 3514 Prototype IDs (31) 620 Alien Tech Used (0) 0 Bonus (403) 403 TOTAL SCORE: 7697 Bonus ------- High Alert Combat Kills 187 Follower Combat Kills 70 Aligned with FarCom 300 Friendly Fire -154 Cogmind --------- Core Integrity 0/550 Matter 290/300 Energy 58/100 System Corruption 0% Temperature Cool (-91) Movement Core (1400) Ox27 Location -8/Materials Parts ------- > --- POWER (1) -------- (None) > --- PROPULSION (2) --- (None) > --- UTILITY (6) ------ Cryofiber Web Improved Heat Sink Huge Storage Unit Improved Targeting Computer Graphene Brace > --- WEAPON (2) ------- (None) > --- INVENTORY (25) --- Wheel Compact Wheel Heat Sink Heat Sink Large Storage Unit High-capacity Matter Pod (200) Structural Scanner Experimental Sensor Array Light Armor Plating Reflective Plating Latent Energy Streamer Advanced Beam Cannon Heavy Particle Cannon Improved Light Cannon Improved Light Cannon Improved Light Cannon Assault Cannon Assault Cannon Rocket Launcher Power Maul Peak State ------------ > --- POWER ------------ Improved Ion Engine > --- PROPULSION ------- (None) > --- UTILITY ---------- Improved Heat Sink Improved Heat Sink Huge Storage Unit Improved Targeting Computer Hardened Light Armor Plating Graphene Brace > --- WEAPON ----------- Latent Energy Streamer Plasma Cannon > --- INVENTORY -------- Heat Sink Large Storage Unit High-capacity Matter Pod Experimental Sensor Array Hardened Light Armor Plating Advanced Beam Cannon Heavy Particle Cannon Plasma Cannon Plasma Cannon Plasma Cannon Improved Light Cannon Improved Light Cannon Improved Light Cannon Assault Cannon Assault Cannon Rocket Launcher Power Maul [Rating: 39] Favorites ----------- Power Heavy Ion Engine Engine Heavy Ion Engine Power Core Light Nuclear Core Propulsion Compact Wheel Treads Improved Treads Leg Aluminum Leg Wheel Compact Wheel Utility Hardened Light Armor Plating Device Improved Heat Sink Storage Large Storage Unit Processor Improved Targeting Computer Protection Hardened Light Armor Plating Weapon Advanced Beam Cannon Energy Gun Small Laser Energy Cannon Advanced Beam Cannon Ballistic Gun Assault Rifle Ballistic Cannon Improved Light Cannon Launcher Rocket Launcher Impact Weapon Power Maul Build | -11 -10 -10 -9 -9 -9 -8 -8 ------- Run | Yrd Mat Min Mat Min Exi Min Mat Slots Evolved 4 | . . . 2 . . . 2 Power . | . . . . . . . . Propulsion . | . . . . . . . . Utility 4 | . . . 2 . . . 2 Weapon . | . . . . . . . . Parts Attached 105 | . 7 5 36 10 1 4 42 Power 9 | . 1 . 3 . . 1 4 Engine 6 | . . . 3 . . . 3 Core 3 | . 1 . . . . 1 1 Reactor . | . . . . . . . . Propulsion 15 | . . . 5 2 . . 8 Treads 2 | . . . . . . . 2 Leg 2 | . . . . . . . 2 Wheel 11 | . . . 5 2 . . 4 Hover . | . . . . . . . . Flight . | . . . . . . . . Utility 37 | . . 2 10 5 1 1 18 Device 18 | . . 2 3 2 . 1 10 Storage 5 | . . . 2 . 1 . 2 Processor 1 | . . . 1 . . . . Hackware . | . . . . . . . . Protection 13 | . . . 4 3 . . 6 Artifact . | . . . . . . . . Weapon 44 | . 6 3 18 3 . 2 12 Energy Gun . | . . . . . . . . Energy Cannon 14 | . 1 . 5 . . . 8 Ballistic Gun 3 | . 2 . 1 . . . . Ballistic Cannon 13 | . 1 1 8 2 . 1 . Launcher 9 | . 2 2 2 1 . 1 1 Special Weapon . | . . . . . . . . Impact Weapon 5 | . . . 2 . . . 3 Slashing Weapon . | . . . . . . . . Piercing Weapon . | . . . . . . . . Special Melee Weapon . | . . . . . . . . Unidentified Prototypes 3 | . . 1 2 . . . . Parts Lost 27 | . . . 1 4 . . 22 Power 4 | . . . . . . . 4 Propulsion 7 | . . . 1 1 . . 5 Utility 11 | . . . . 3 . . 8 Weapon 5 | . . . . . . . 5 Highest Loss Streak 10 | . . . 1 3 . . 10 To Critical Strikes . | . . . . . . . . Average Slot Usage (%) 96 | . 85 96 98 99 100 100 95 Engine 6 | . 8 . 8 11 11 4 4 Core 3 | . 5 14 2 . . 6 3 Treads 1 | . . . . . . . 4 Leg 5 | . 28 28 3 . . . . Wheel 13 | . . . 18 22 22 22 10 Device 12 | . . 11 13 5 . . 23 Storage 10 | . 14 14 11 11 11 11 9 Processor 7 | . . . 8 11 11 11 9 Protection 11 | . . . 10 16 22 21 11 Energy Cannon 11 | . 8 14 7 11 11 11 15 Ballistic Gun 1 | . 9 . . . . . . Ballistic Cannon 6 | . 3 4 13 10 11 10 . Naked Turns . | . . . . . . . . Heaviest Build 109 | 13 16 18 43 46 46 46 109 Greatest Support 32 | 20 20 20 32 32 32 32 32 Greatest Overweight (x) 36 | . . . 1 2 1 1 36 Average Overweight (x) 1 | . . . . 1 1 1 5 Largest Inventory Capacity 25 | . 8 8 15 15 15 15 25 Average Capacity 15 | . 8 8 12 15 15 15 23 Most Carried 25 | . 8 8 15 15 14 15 25 Average Carried 13 | . 7 7 11 13 12 13 18 Final Capacity 25 | 8 8 8 15 15 15 15 25 Final Carried 20 | 6 8 8 15 12 13 15 20 Class Distribution -------------------- 84% | Mutant 15% | Scavenger-Mutant Dominant Class ---------------- Mutant | -10/Materials Mutant | -10/Mines Mutant | -9/Materials Mutant | -9/Mines Mutant | -9/Exiles Mutant | -8/Mines Mutant | -8/Materials Resources | -11 -10 -10 -9 -9 -9 -8 -8 ----------- Run | Yrd Mat Min Mat Min Exi Min Mat Matter Collected 2548 | 189 413 137 748 282 . 100 679 Remotely . | . . . . . . . . Salvage Created 4877 | . 667 195 1140 573 . 109 2193 Parts 300 | . 46 13 91 34 . 10 106 Haulers Intercepted 9 | . 1 . 5 . . . 3 Recyclers Shooed 11 | . 5 . 1 . . . 5 Parts Field Recycled . | . . . . . . . . Retrieved Matter . | . . . . . . . . Parts Self-Destructed . | . . . . . . . . Prevented . | . . . . . . . . Kills | -11 -10 -10 -9 -9 -9 -8 -8 ------- Run | Yrd Mat Min Mat Min Exi Min Mat Combat Hostiles Destroyed 99 | . 13 5 27 19 . 7 28 Guns 8 | . 8 . . . . . . Cannons 63 | . 5 . 21 13 . 3 21 AOE 22 | . . 5 5 4 . 4 4 Classes Destroyed 17 | . 7 2 1 1 . 1 5 Worker 5 | . 1 . 1 . . . 3 Builder 5 | . . . . . . . 5 Tunneler 3 | . . 1 . 1 . . 1 Hauler 9 | . 1 . 5 . . . 3 Recycler 16 | . 2 2 4 1 . . 7 Mechanic 1 | . . . . . . . 1 Operator 3 | . 2 . 1 . . . . Watcher 10 | . 3 . 3 . . . 4 Swarmer 41 | . 6 5 14 7 . 5 4 Grunt 27 | . 7 . 3 7 . 1 9 Brawler 1 | . . . . . . . 1 Duelist 3 | . . . . 3 . . . Sentry 21 | . . . 10 2 . . 9 Specialist 2 | . . . . . . . 2 Hunter 3 | . . . . . . 1 2 Heavy 1 | . . . . . . . 1 Zionite 1 | . . 1 . . . . . Best Kill Streak 9 | . 4 4 9 4 . 3 5 Combat Bots Only 8 | . 3 3 8 4 . 3 5 Max Kills in Single Turn 3 | . 1 3 2 2 . 2 2 Gunslinging . | . . . . . . . . Exploded 2 | . . 2 2 2 . 2 2 Melee . | . . . . . . . . Uniques/NPCs Destroyed . | . . . . . . . . Combat | -11 -10 -10 -9 -9 -9 -8 -8 -------- Run | Yrd Mat Min Mat Min Exi Min Mat Hostile Shots Fired 417 | . 38 16 80 65 . 29 189 Missed 107 | . 4 9 30 21 . 10 33 Damage Taken 4815 | . 345 56 617 584 . 292 2921 Core 890 | . 107 10 118 74 . 29 552 Absorbed by Shields . | . . . . . . . . Regen/Repaired (Parts) 541 | . . . 376 . . . 165 Core Remaining (%) 65 | 100 . 53 . . . 44 . Volleys Fired 357 | . 54 9 80 47 . 26 141 Largest 2 | . 2 2 2 2 . 2 2 Hottest 160 | . 95 95 107 107 . 107 160 Shots Fired 675 | . 106 10 155 92 . 39 273 Gun 75 | . 73 . 2 . . . . Cannon 561 | . 31 2 148 90 . 26 264 Launcher 39 | . 2 8 5 2 . 13 9 Special . | . . . . . . . . Kinetic 211 | . 52 1 85 45 . 13 15 Thermal 425 | . 52 1 65 45 . 13 249 Explosive 39 | . 2 8 5 2 . 13 9 Electromagnetic . | . . . . . . . . Robot Hit Streak 13 | . 12 5 12 7 . 6 13 Robot Miss Streak 6 | . 3 2 5 4 . 6 4 Penetration Max . | . . . . . . . . Secondary Targets . | . . . . . . . . Shots Hit Robots 408 | . 64 2 93 50 . 12 187 Core Hits 176 | . 29 9 41 23 . 12 62 Critical Kills 6 | . . . 1 2 . . 3 Critical Parts Destroyed 3 | . 1 . . . . . 2 Critical Strikes 17 | . 1 . 6 4 . . 6 Meltdown 6 | . . . 1 2 . . 3 Destroy 1 | . 1 . . . . . . Blast 8 | . . . 5 2 . . 1 Smash 2 | . . . . . . . 2 Melee Attacks 15 | . . . 3 . . . 12 Impact 15 | . . . 3 . . . 12 Slashing . | . . . . . . . . Piercing . | . . . . . . . . Sneak Attacks 4 | . . . . . . . 4 Combat Hostiles . | . . . . . . . . Follow-up Attacks . | . . . . . . . . Damage Inflicted 11106 | . 906 473 2591 1413 . 654 5069 Guns 563 | . 551 . 12 . . . . Cannons 8381 | . 355 18 2040 1176 . 312 4480 Explosions 1760 | . . 455 539 237 . 342 187 Melee 402 | . . . . . . . 402 Ramming . | . . . . . . . . Kinetic 2361 | . 403 . 1125 506 . 160 167 Thermal 6649 | . 503 18 927 736 . 152 4313 Explosive 1694 | . . 455 539 171 . 342 187 Electromagnetic . | . . . . . . . . Impact 402 | . . . . . . . 402 Slashing . | . . . . . . . . Piercing . | . . . . . . . . Highest Corruption . | . . . . . . . . Average Corruption . | . . . . . . . . Corruption Purged . | . . . . . . . . Corruption Blocked . | . . . . . . . . Overload Shots . | . . . . . . . . Overflow Damage 522 | . 5 35 80 40 . 3 359 Projectiles 171 | . 5 . 36 40 . 3 87 Explosions 109 | . . 35 44 . . . 30 Melee 242 | . . . . . . . 242 Knockbacks 27 | . . . 5 12 . 4 6 Impact 2 | . . . . . . . 2 Kinetic 23 | . . . 5 10 . 4 4 Secondary 2 | . . . . 2 . . . Self-Inflicted Damage 115 | . . . 21 . . 94 . Shots 4 | . . . 1 . . 3 . Rammed . | . . . . . . . . Targets Rammed . | . . . . . . . . Kicked . | . . . . . . . . Crushed . | . . . . . . . . Highest Temperature 412 | . 168 9 222 326 . 412 345 Average Temperature 78 | . 47 6 56 133 . 119 66 Received Heat Transfer 1563 | . 132 . 174 195 . 63 999 Effects 3 | . . . . 1 . 1 1 Energy Bleed 2 | . . . . 1 . . 1 Matter Decay 1 | . . . . . . 1 . Siege Activations . | . . . . . . . . Robots Corrupted . | . . . . . . . . Combat Hostiles . | . . . . . . . . Parts Fried 2 | . . . . . . . 2 Impact Corruptions 9 | . . . . . . . 9 Robots Melted 7 | . . . 1 2 . . 4 Combat Hostiles 6 | . . . 1 2 . . 3 Parts Melted 31 | . . . 6 1 . 1 23 Heat Transferred 12004 | . 1104 37 1591 1247 . 259 7766 Parts Sabotaged . | . . . . . . . . Parts Stolen . | . . . . . . . . Parts Stripped . | . . . . . . . . Power Chain Reactions . | . . . . . . . . Alert | -11 -10 -10 -9 -9 -9 -8 -8 ------- Run | Yrd Mat Min Mat Min Exi Min Mat Peak Influence 507 | . 260 147 506 471 . 256 507 Initial 144 | . . 63 35 144 . . 74 Average 256 | . 162 101 310 383 . 136 270 Maximum Alert Level 2 | . 1 . 2 2 . 1 2 Low Security (%) 47 | . 64 100 29 1 . 92 46 Level 1 22 | . 35 . 21 36 . 7 21 Level 2 30 | . . . 49 62 . . 31 Level 3 . | . . . . . . . . Level 4 . | . . . . . . . . Level 5 . | . . . . . . . . High Security . | . . . . . . . . Max Security . | . . . . . . . . Squads Dispatched 10 | . 2 . 2 . . . 6 Investigation 2 | . 1 . 1 . . . . Extermination . | . . . . . . . . Reinforcement 7 | . 1 . 1 . . . 5 Assault 1 | . . . . . . . 1 Garrison . | . . . . . . . . Intercept . | . . . . . . . . Searches Triggered . | . . . . . . . . Construction Impeded 3 | . . . 1 . . . 2 Haulers Reinforced . | . . . . . . . . Active Scanning Responses . | . . . . . . . . Cargo Convoy Interrupts . | . . . . . . . . Stealth | -11 -10 -10 -9 -9 -9 -8 -8 --------- Run | Yrd Mat Min Mat Min Exi Min Mat Distress Signals 8 | . 2 . 4 . . . 2 Communications Jammed . | . . . . . . . . Distress Signals . | . . . . . . . . Times Spotted 143 | . 22 6 35 19 . 17 44 Peak Tracking Total 7 | . 4 3 5 5 . 4 7 Tactical Retreats 6 | . . . . 2 . . 4 Traps | -11 -10 -10 -9 -9 -9 -8 -8 ------- Run | Yrd Mat Min Mat Min Exi Min Mat Traps Triggered 4 | . . . 3 . . . 1 Indirectly . | . . . . . . . . Trap Hack Attempts . | . . . . . . . . Triggered . | . . . . . . . . Disarmed . | . . . . . . . . Reprogrammed . | . . . . . . . . Reused . | . . . . . . . . Traps Extracted . | . . . . . . . . Installed . | . . . . . . . . Triggered . | . . . . . . . . Most Traps Carried 1 | . . 1 . . . . . Machines | -11 -10 -10 -9 -9 -9 -8 -8 ---------- Run | Yrd Mat Min Mat Min Exi Min Mat Machines Disabled 13 | . 1 . 5 2 . 1 4 Max in Single Turn 2 | . 1 . 2 1 . 1 1 Garrison Access 1 | . . . . . . . 1 Machines Repaired . | . . . . . . . . Machines Dismantled . | . . . . . . . . Machines Sabotaged . | . . . . . . . . Overloaded Fab Kills . | . . . . . . . . Hacking | -11 -10 -10 -9 -9 -9 -8 -8 --------- Run | Yrd Mat Min Mat Min Exi Min Mat Machines Accessed 34 | . 7 . 12 . 2 . 13 Terminals 26 | . 7 . 9 . . . 10 Fabricators . | . . . . . . . . Repair Stations 4 | . . . 2 . . . 2 Recycling Units 1 | . . . 1 . . . . Scanalyzers . | . . . . . . . . Garrison Access 1 | . . . . . . . 1 Total Hacks 104 | . 20 . 43 . 2 . 39 Successful 49 | . 7 . 22 . 2 . 18 Failed 54 | . 12 . 21 . . . 21 Catastrophic 7 | . 1 . 3 . . . 3 Database Lockouts 1 | . 1 . . . . . . Manual 64 | . 18 . 26 . 1 . 19 Terminals 75 | . 20 . 27 . . . 28 Fabricators . | . . . . . . . . Repair Stations 22 | . . . 13 . . . 9 Recycling Units 3 | . . . 3 . . . . Scanalyzers . | . . . . . . . . Garrison Access 2 | . . . . . . . 2 Terminal Hacks 14 | . 3 . 5 . 2 . 4 Record 1 | . . . . . 1 . . Robot Analysis 3 | . 2 . 1 . . . . Prototype ID Bank 3 | . 1 . 1 . . . 1 Alert Level 2 | . . . 1 . . . 1 Unreport Threat 1 | . . . 1 . . . . Locate Traps 1 | . . . . . . . 1 Assault Status 1 | . . . . . . . 1 Zone Layout 1 | . . . 1 . . . . Derelict Proto ID Bank 1 | . . . . . 1 . . Fabricator Hacks . | . . . . . . . . Repair Station Hacks 15 | . . . 9 . . . 6 Scan Component 9 | . . . 5 . . . 4 Repair 6 | . . . 4 . . . 2 Recycling Unit Hacks 1 | . . . 1 . . . . Report Inventory 1 | . . . 1 . . . . Scanalyzer . | . . . . . . . . Garrison Access Hacks 1 | . . . . . . . 1 Seal Access 1 | . . . . . . . 1 Unauthorized Hacks 18 | . 4 . 7 . . . 7 Terminals 16 | . 4 . 5 . . . 7 Botnet 16 | . 4 . 5 . . . 7 Fabricators . | . . . . . . . . Repair Stations . | . . . . . . . . Recycling Units 2 | . . . 2 . . . . Monitor 1 | . . . 1 . . . . Recyclers 1 | . . . 1 . . . . Scanalyzers . | . . . . . . . . Garrison Access . | . . . . . . . . Data Cores Recovered 2 | . 1 . 1 . . . . Used 1 | . . . 1 . . . . Hacking Detections 30 | . 8 . 11 . . . 11 Full Trace Events 4 | . 1 . 2 . . . 1 Feedback Events . | . . . . . . . . Feedback Blocked . | . . . . . . . . Robot Schematics Acquired . | . . . . . . . . Robots Built . | . . . . . . . . Authchips . | . . . . . . . . Time . | . . . . . . . . Total Robot Build Rating . | . . . . . . . . Part Schematics Acquired . | . . . . . . . . Parts Built . | . . . . . . . . Authchips . | . . . . . . . . Time . | . . . . . . . . Total Part Build Rating . | . . . . . . . . Parts Repaired 6 | . . . 4 . . . 2 Time 312 | . . . 223 . . . 89 Parts Recycled . | . . . . . . . . Recycled Matter . | . . . . . . . . Retrieved Matter . | . . . . . . . . Retrieved Components . | . . . . . . . . Parts Scanalyzed . | . . . . . . . . Part Schematics Acquired . | . . . . . . . . Parts Damaged . | . . . . . . . . Bothacking | -11 -10 -10 -9 -9 -9 -8 -8 ------------ Run | Yrd Mat Min Mat Min Exi Min Mat Used RIF Installer . | . . . . . . . . Robots Hacked . | . . . . . . . . Non-combat . | . . . . . . . . Combat . | . . . . . . . . Robot Hacks Applied . | . . . . . . . . Relay Couplers Released . | . . . . . . . . Fabnet Peak Effective % . | . . . . . . . . Robots Rewired . | . . . . . . . . Allies Hacked . | . . . . . . . . Hacks Repelled . | . . . . . . . . Allies | -11 -10 -10 -9 -9 -9 -8 -8 -------- Run | Yrd Mat Min Mat Min Exi Min Mat Total Allies 5 | . . 2 . 3 . . . Largest Group 3 | . . 2 1 3 3 3 . Highest-Rated Group 42 | . . 42 31 40 40 40 . Highest-Rated Ally 31 | . . 31 31 16 16 16 . Total Orders . | . . . . . . . . Ally Attacks 39 | . . 4 7 . . 28 . Total Damage 370 | . . 21 101 . . 248 . Kills 10 | . . . 2 . . 8 . Allies Corrupted . | . . . . . . . . Allies Melted . | . . . . . . . . Intel | -11 -10 -10 -9 -9 -9 -8 -8 ------- Run | Yrd Mat Min Mat Min Exi Min Mat Robot Analysis Total 3 | . 2 . 1 . . . . Derelict Logs Recovered 4 | . . 3 . 1 . . . Drone Launches . | . . . . . . . . Drone Recoveries . | . . . . . . . . Exploration | -11 -10 -10 -9 -9 -9 -8 -8 ------------- Run | Yrd Mat Min Mat Min Exi Min Mat Turns Passed 8886 | . 952 701 2041 1020 575 662 2935 Spaces Moved 5105 | 1 618 548 1265 740 498 454 981 Core 2 | . . . . . . . 2 Treads 5 | . . . . . . . 5 Legs 1331 | 1 618 548 156 . . . 8 Wheels 3767 | . . . 1109 740 498 454 966 Hover . | . . . . . . . . Flight . | . . . . . . . . Fastest Speed 100 | 120 120 120 100 115 115 115 115 Average Speed 129 | 120 120 120 114 115 115 115 185 Slowest Speed 1850 | 120 120 120 190 130 115 115 1850 Overloaded Moves . | . . . . . . . . Propulsion Burnouts . | . . . . . . . . Robots Hopped . | . . . . . . . . Cave-ins Triggered . | . . . . . . . . Exploration Rate (%) 80 | 2 97 97 95 96 90 89 81 Regions Visited 7 Branch Regions 4 Pre-discovered Areas 3 | . . 1 . 1 1 . . Known Exits Taken 2 | . . 1 . . . 1 . Unknown Exits Taken 5 | 1 1 . 1 1 1 . . Scrap Searched 3 | . . 1 . 1 . 1 . Spaces Dug 90 | . 7 . 2 12 . 44 25 Terrain Destroyed 356 | . 12 38 38 35 . 126 107 Melee 9 | . . . 2 . . . 7 Projectile 42 | . . . 5 2 . 7 28 AOE 305 | . 12 38 31 33 . 119 72 Terrain Rammed . | . . . . . . . . Walls Destroyed . | . . . . . . . . Machines Disabled . | . . . . . . . . Actions | -11 -10 -10 -9 -9 -9 -8 -8 --------- Run | Yrd Mat Min Mat Min Exi Min Mat Total 6673 | . 722 583 1697 816 500 554 1801 Wait 999 | . 33 15 286 15 . 67 583 Move 5098 | . 617 547 1264 739 497 453 981 Hop . | . . . . . . . . Pick Up 53 | . 6 4 13 3 1 1 25 Fast Attach 24 | . . . 14 . . 2 8 Attach 22 | . . 1 2 5 . . 14 Detach 6 | . . . 2 . . 2 2 Swap 59 | . 7 4 20 5 1 2 20 Drop 40 | . 5 3 13 2 1 1 15 Fire 357 | . 54 9 80 47 . 26 141 Melee 15 | . . . 3 . . . 12 Ram . | . . . . . . . . Kick . | . . . . . . . . Crush . | . . . . . . . . Escape Stasis . | . . . . . . . . Rewire . | . . . . . . . . Trap . | . . . . . . . . Miscellaneous . | . . . . . . . . Route ------- -11/Scrapyard -10/Materials (discovered 5 exits: *Mat x3 / [*Min x2]) -10/Mines (discovered 3 exits: *Mat x2 / [*Sub]) -9/Materials (discovered 5 exits: *Mat x3 / [*Min x2]) -9/Mines (discovered 4 exits: *Mat x2 / *Exi / [*Zio]) -9/Exiles -8/Mines (discovered 2 exits: *Mat x2) -8/Materials (discovered 3 exits: [*Fac x3]) History --------- Turn | Location | Event 1 | -11/Scrapyard | Discovered new exit (range 0) 1 | -11/Scrapyard | Entered Materials 159 | -10/Materials | Discovered new exit (range 16) 317 | -10/Materials | Build established: Mutant 324 | -10/Materials | Discovered new exit (range 5) 451 | -10/Materials | Discovered new exit (range 12) 673 | -10/Materials | Discovered new exit (range 12) 775 | -10/Materials | Central database locked down 793 | -10/Materials | Discovered new exit (range 16) 953 | -10/Materials | Entered Mines 1095 | -10/Mines | Identified exit to Materials 1096 | -10/Mines | Received a Rocket Launcher from a helpful Derelict 1115 | -10/Mines | Learned location of 1 exit from Materials 1151 | -10/Mines | Found a hidden stash of uninstalled traps 1369 | -10/Mines | Found a damaged Exp. Sensor Array with a note attached 1372 | -10/Mines | Found Prototype Device 1399 | -10/Mines | Identified Exp. Sensor Array 1440 | -10/Mines | Discovered exit to Materials (range 4) 1578 | -10/Mines | Learned location of Storage (-7) 1623 | -10/Mines | Discovered new exit (range 6) 1654 | -10/Mines | Entered Materials 1654 | -9/Materials | Accompanied by 1 ally 1654 | -9/Materials | Evolved 2 slots: Utility x2 1655 | -9/Materials | Identified exit to Materials 1659 | -9/Materials | Led the pair of lost Derelicts to an unsafe place 2225 | -9/Materials | Discovered new exit (range 15) 2309 | -9/Materials | Discovered exit to Materials (range 14) 2394 | -9/Materials | Destroyed 8 combat bots 2775 | -9/Materials | Repaired Exp. Sensor Array 2936 | -9/Materials | Discovered new exit (range 14) 3156 | -9/Materials | Discovered exit to Materials (range 7) 3404 | -9/Materials | Repaired Hrd. Light Armor Plating 3437 | -9/Materials | Repaired Imp. Light Cannon 3490 | -9/Materials | Repaired Hvy. Ion Engine 3695 | -9/Materials | Entered Mines 3815 | -9/Mines | A Derelict revealed a hidden shortcut to a safe place 3823 | -9/Mines | Learned Materials terminal intel 3959 | -9/Mines | Discovered exit to Materials (range 7) 4262 | -9/Mines | Lost 3 parts (1n2u) 4359 | -9/Mines | Discovered exit to Materials (range 5) 4402 | -9/Mines | Assisted by bots powering up and referring to "LRC-V3" 4455 | -9/Mines | A weapon hastily lodged in a ceiling crevice suddenly fell to the ground 4710 | -9/Mines | Deemed a non-threat by the Exiles lab entrance 4710 | -9/Mines | Discovered new exit (range 5) 4715 | -9/Mines | Entered Exiles 4715 | -9/Exiles | Accompanied by 3 allies 4744 | -9/Exiles | Met 8R-AWN 4764 | -9/Exiles | Met EX-HEX 4795 | -9/Exiles | Met EX-BIN 4807 | -9/Exiles | Aligned with FarCom system 4809 | -9/Exiles | Given EX-Vault access code 4835 | -9/Exiles | Opened EX-Vault 4842 | -9/Exiles | Found Latent Energy Streamer 4866 | -9/Exiles | Warned to stay clear of 0b10 Research branches 4903 | -9/Exiles | Met EX-DEC 4907 | -9/Exiles | Learned location of Zion (-7) 5018 | -9/Exiles | Visited The Gauntlet 5277 | -9/Exiles | Discovered new exit (range 11) 5290 | -9/Exiles | Left Exiles lab with Latent Energy Streamer 5290 | -9/Exiles | Entered Mines 5290 | -8/Mines | Accompanied by 3 allies 5432 | -8/Mines | Discovered exit to Materials (range 7) 5851 | -8/Mines | Discovered exit to Materials (range 15) 5856 | -8/Mines | Core integrity fell below 50% 5952 | -8/Mines | Entered Materials 5952 | -8/Materials | Evolved 2 slots: Utility x2 5953 | -8/Materials | Loaded intel: 12 terminal locations 6339 | -8/Materials | Discovered new exit (range 16) 6698 | -8/Materials | Lost 3 parts (3u) 6876 | -8/Materials | Discovered new exit (range 16) 6976 | -8/Materials | Lost 4 parts (1p3n) 7714 | -8/Materials | Build established: Scavenger-Mutant 7773 | -8/Materials | Discovered new exit (range 4) 8131 | -8/Materials | Repaired Imp. Heat Sink 8183 | -8/Materials | Repaired Adv. Beam Cannon 8752 | -8/Materials | First assault squad dispatched 8832 | -8/Materials | Core integrity fell below 50% 8864 | -8/Materials | Core integrity fell below 20% 8887 | -8/Materials | Destroyed by G-50 Soldier with Heavy Laser Last Messages --------------- 08853_ Dropped Hcp. Matter Pod. 08853_ Acquired Hcp. Matter Pod. 08854_ Dropped Com. Battery. 08855_ Extracted 85 energy. 08855_ K-01 Serf collects debris. 08856_ Extracted 40 energy. 08860_ K-01 Serf collects debris. 08860_ U-05 Engineer builds a Wall. 08862_ Extracted 35 energy. 08864_ G-47 Trooper destroyed. 08865_ K-01 Serf collects debris. 08869_ U-05 Engineer builds a Wall. 08869_ R-06 Scavenger collects Com. Battery. 08870_ K-01 Serf collects debris. 08872_ Imp. Treads destroyed. 08873_ K-01 Serf collects debris. 08875_ Plasma Cannon destroyed. 08876_ K-01 Serf collects debris. 08884_ K-01 Serf cleans the Processing Tank. 08885_ Plasma Cannon destroyed. Map ----- +----------------------------------------------------+ | ????# [ # # ## # ####### | | #???# # #?? ??# # | | #???# + #####+##### # | | #???# """ """ # + # | | #???# """ """ # # #! ####### | | #???# """ """ # + ####????????# | | ##??# # ###############+####???????????# | | ##??########### #????######## ############## | | ##????????????# # !! # = | | #?????????????# + + ! [ ^ | | #????????###### #????# ! | | #????????# #????# #### ########### ## | | #????????# #### #????# #??## ############ ?? | | #???????????####+#####?# #???# # [ ! ! ## #? | | #???????????# #?# #???# # ! ## #? | | ????????????# [ " ### #???# + ! ] ## #? | | ????????????# T + #???# # ## #? | | ????????????# " ###% #???# ############ #? | | ????????????# ### #??## ##?????????# #? | | ????????????# """"" ###% ##?# ########### ## | | ????????????# """"" #?#i #??# | | ????????????# """"" #?#g #??# | | ????????????# #?# g #??# | | ????????????##########?# #??# ###+######### | | ???????????????????????# % #??####### #??# | | ?????????????????????####@#####?????# #??# | | ????????????????????? #?????# #??# | | ????????????????????? """k""" #?????# #??# | | ????????????????????# """ "Y" #?????# #### | | ????????????????????# """ #?????# """ ## | | ????????????????????# """ ####### """ ## | | ????????????????????# """ + + """ ## | | ????????????????????# #g##### [ ## | | ????????????????????# [ # #???########### | | ??????###???????????#######+### #?????????????## | | ??????? ##????????? #????# #?# #??############# | | ???????? ?????????%#??### ###%####T# | | ????????? ????######### [ | | ??????#####!##### %% #% ^ ^ | | ????* / *!%!%%[% % # #### | | ??????#####!#####=! # ^ """# | | ??????????# ????#!%%##### # ^ """ T"# | | ??????????#????##%* ########"## """"" """# | | ???????????????# = # ### """"" #### | | ????????????#### # #?#T """"" #??? | | ????????????# + #?#" """ #### | | ????????????# ## # #?# | | ????????????#??# # #?# ! | | ???????????????###%### #?# ### | | ?????????????????#!#?########?# #?######## | +----------------------------------------------------+ Best States ------------- Heat Dissipation 64 Energy Generation 14 Energy Capacity 280 Matter Stores 300 Matter Capacity 300 Sight Range 16 Robot Scan Range 20 Terrain Scan Density 10 Base Temperature (-) 100 Armor Coverage 450 Resistance: TH 10 Evasion (%) 55 Targeting Accuracy 6 Recoil Reduction 1 Item Schematics ----------------- None Robot Schematics ------------------ None Fabricated ------------ Nothing Alien Tech Used ----------------- None Achievements -------------- None Challenges ------------ None Game ------ Seed DamperFortressShielding Manual? 0 Play Time 01:40:23 Cumulative 282.8 hours Start 2024.06.27 @ 13:11:00 End 2024.06.27 @ 15:01:35 Sessions 1 Manual Loads 0 Difficulty Rogue Special Mode None Game No. 161 Rogue 161 Adventurer 0 Explorer 0 Win Type - Total 2 Types 2/0/0/0/0/0/0/0/0 Lore% 49 Gallery% 59 Achievement% 34 Wizard Run 0 Options --------- Layout 0 ASCII 0 Keyboard 1 Movement Numpad Keybinds 0 Fullscreen 2 Font 18/SmallcapsGlow Map View 76x50 Zoom Use 0% Tactical HUD 1 Map Filters NONE Filters NONE Steam 1 RUN: 5f77ec39-c443-4409-9223-6b2c0aa327ec